Cogmind - Beta 11 X2 --- EXPLORER MODE // 2021.02.16 @ 17:02:18 Player: jfk Result: Self-destructed Performance ------------- Evolutions (1) 500 Regions Visited (5) 1000 Robots Destroyed (22) 110 Value Destroyed (543) 543 Prototype IDs (6) 120 Alien Tech Used (0) 0 Bonus (300) 300 TOTAL SCORE: 2573 Bonus ------- Aligned with FarCom 300 Cogmind --------- Core Integrity 338/400 Matter 250/300 Energy 273/280 System Corruption 0% Temperature Cool (0) Movement Walking (120) Location -9/Exiles Parts ------- > --- POWER (1) -------- Heavy Ion Engine > --- PROPULSION (4) --- Aluminum Leg Aluminum Leg Improved Aluminum Leg Improved Aluminum Leg > --- UTILITY (3) ------ Medium Storage Unit ECM Suite Core Shielding > --- WEAPON (2) ------- Field Lobotomy Kit > --- INVENTORY (10) --- Ion Engine Light Nuclear Core Aluminum Leg Improved Heat Sink Medium Matter Pod (100) Faulty Experimental Sensor Array ECM Suite Light Armor Plating Small Laser Makeshift Spear Peak State ------------ > --- POWER ------------ Heavy Ion Engine > --- PROPULSION ------- Aluminum Leg Aluminum Leg Improved Aluminum Leg Improved Aluminum Leg > --- UTILITY ---------- Medium Storage Unit ECM Suite Core Shielding > --- WEAPON ----------- Field Lobotomy Kit > --- INVENTORY -------- Ion Engine Light Nuclear Core Aluminum Leg Improved Heat Sink Medium Matter Pod Experimental Sensor Array ECM Suite Light Armor Plating Small Laser Makeshift Spear [Rating: 24] Favorites ----------- Power Heavy Ion Engine Engine Heavy Ion Engine Propulsion Aluminum Leg Leg Aluminum Leg Utility Core Shielding Device ECM Suite Storage Medium Storage Unit Protection Core Shielding Weapon Heavy Assault Rifle Energy Gun Improved EM Shotgun Ballistic Gun Heavy Assault Rifle Special Weapon Field Lobotomy Kit Slashing Weapon Longsword +1 Build | -11 -10 -10 -9 -9 -9 ------- Run | Scr Mat Min Mat Min Exi Slots Evolved 3 | . 1 . 2 . . Power . | . . . . . . Propulsion 2 | . . . 2 . . Utility 1 | . 1 . . . . Weapon . | . . . . . . Parts Attached 25 | 7 2 3 7 1 5 Power 4 | 1 . . 3 . . Engine 4 | 1 . . 3 . . Core . | . . . . . . Reactor . | . . . . . . Propulsion 6 | 2 . . 3 1 . Treads . | . . . . . . Leg 6 | 2 . . 3 1 . Wheel . | . . . . . . Hover . | . . . . . . Flight . | . . . . . . Utility 8 | 2 2 2 . . 2 Device 5 | . 1 2 . . 2 Storage 1 | 1 . . . . . Processor . | . . . . . . Hackware . | . . . . . . Protection 2 | 1 1 . . . . Artifact . | . . . . . . Weapon 7 | 2 . 1 1 . 3 Energy Gun 2 | 1 . . 1 . . Energy Cannon . | . . . . . . Ballistic Gun 2 | 1 . 1 . . . Ballistic Cannon . | . . . . . . Launcher . | . . . . . . Special Weapon 1 | . . . . . 1 Impact Weapon . | . . . . . . Slashing Weapon 2 | . . . . . 2 Piercing Weapon . | . . . . . . Special Melee Weapon . | . . . . . . Unidentified Prototypes 6 | . . 1 2 . 3 Parts Lost 2 | . . 1 1 . . Power . | . . . . . . Propulsion . | . . . . . . Utility . | . . . . . . Weapon 2 | . . 1 1 . . Highest Loss Streak 1 | . . 1 1 . . Average Slot Usage (%) 95 | . 98 91 92 100 95 Engine 10 | . 12 12 10 10 10 Leg 34 | . 25 25 36 40 40 Device 10 | . 11 12 10 10 9 Storage 10 | . 12 12 10 10 10 Protection 10 | . 12 12 10 10 10 Energy Gun 7 | . 12 4 5 10 6 Ballistic Gun 10 | . 12 12 10 10 6 Naked Turns . | . . . . . . Heaviest Build 26 | 19 20 20 26 26 26 Greatest Support 46 | 20 20 20 46 46 46 Greatest Overweight (x) 3 | 3 . . . . . Average Overweight (x) . | . . . . . . Largest Inventory Capacity 10 | 10 10 10 10 10 10 Average Capacity 9 | 9 10 10 10 10 10 Most Carried 10 | 6 5 8 9 10 10 Average Carried 8 | 2 4 7 8 9 10 Final Capacity 10 | 10 10 10 10 10 10 Final Carried 10 | 5 5 8 9 10 10 Class Distribution -------------------- 100% | Hacker-Mutant Dominant Class ---------------- Hacker-Mutant | -10/Materials Hacker-Mutant | -10/Mines Hacker-Mutant | -9/Materials Hacker-Mutant | -9/Mines Hacker-Mutant | -9/Exiles Resources | -11 -10 -10 -9 -9 -9 ----------- Run | Scr Mat Min Mat Min Exi Matter Collected 731 | 144 14 279 244 50 . Remotely . | . . . . . . Salvage Created 818 | . 14 147 497 160 . Parts 52 | . 3 13 28 8 . Haulers Intercepted 2 | . . . 2 . . Recyclers Shooed . | . . . . . . Parts Field Recycled . | . . . . . . Retrieved Matter . | . . . . . . Parts Self-Destructed . | . . . . . . Prevented . | . . . . . . Kills | -11 -10 -10 -9 -9 -9 ------- Run | Scr Mat Min Mat Min Exi Combat Hostiles Destroyed 16 | . . 4 9 3 . Guns 16 | . . 4 9 3 . Classes Destroyed 6 | . 1 2 3 . . Worker 2 | . . . 1 1 . Hauler 2 | . . . 2 . . Watcher 2 | . 1 . 1 . . Swarmer 4 | . . 2 2 . . Grunt 8 | . . . 5 3 . Sentry 4 | . . 2 2 . . Best Kill Streak 6 | . 1 2 6 3 . Combat Bots Only 3 | . . 2 3 2 . Max Kills in Single Turn 2 | . 1 1 2 1 . Gunslinging . | . . . . . . Exploded . | . . . . . . Melee . | . . . . . . Uniques/NPCs Destroyed . | . . . . . . Combat | -11 -10 -10 -9 -9 -9 -------- Run | Scr Mat Min Mat Min Exi Damage Taken 588 | . . 238 300 50 . Core 86 | . . 24 54 8 . Absorbed by Shields . | . . . . . . Core Remaining (%) 95 | 100 . 90 . . . Volleys Fired 83 | . 1 13 61 8 . Largest 2 | . 2 2 2 2 . Hottest 68 | . 60 60 53 68 . Shots Fired 131 | . 2 20 93 16 . Gun 131 | . 2 20 93 16 . Cannon . | . . . . . . Launcher . | . . . . . . Special . | . . . . . . Kinetic 83 | . 1 13 61 8 . Thermal 40 | . 1 7 32 . . Explosive . | . . . . . . Electromagnetic 8 | . . . . 8 . Robot Hit Streak 27 | . 1 12 17 27 . Robot Miss Streak 2 | . . 2 1 1 . Penetration Max . | . . . . . . Secondary Targets 2 | . . 1 . 1 . Max Gunslinging Chain 1 | . . 1 . 1 . Shots Hit Robots 80 | . 1 17 47 15 . Core Hits 34 | . 1 6 17 10 . Critical Hits 1 | . . . 1 . . Critical Kills . | . . . . . . Critical Parts Destroyed 1 | . . . 1 . . Melee Attacks 3 | . . . . . 3 Impact . | . . . . . . Slashing 3 | . . . . . 3 Piercing . | . . . . . . Sneak Attacks . | . . . . . . Combat Hostiles . | . . . . . . Follow-up Attacks . | . . . . . . Damage Inflicted 1149 | . 14 232 663 240 . Guns 1123 | . 12 227 663 221 . Cannons . | . . . . . . Explosions . | . . . . . . Melee . | . . . . . . Ramming 26 | . 2 5 . 19 . Kinetic 793 | . . 157 563 73 . Thermal 182 | . 12 70 100 . . Explosive . | . . . . . . Electromagnetic 148 | . . . . 148 . Impact . | . . . . . . Slashing . | . . . . . . Piercing . | . . . . . . Highest Corruption 4 | . . 4 . . . Average Corruption 4 | . . 4 . . . Corruption Purged . | . . . . . . Effects 7 | . . 7 . . . Message Errors 2 | . . 2 . . . Matter Fused 1 | . . 1 . . . Heat Flow Errors 2 | . . 2 . . . Energy Discharges 1 | . . 1 . . . Data Loss (minor) 1 | . . 1 . . . Overload Shots . | . . . . . . Overflow Damage . | . . . . . . Projectiles . | . . . . . . Explosions . | . . . . . . Melee . | . . . . . . Knockbacks 1 | . . . . 1 . Impact 1 | . . . . 1 . Kinetic . | . . . . . . Secondary . | . . . . . . Self-Inflicted Damage . | . . . . . . Shots . | . . . . . . Rammed . | . . . . . . Targets Rammed 7 | . 1 2 . 4 . Kicked 7 | . 1 2 . 4 . Crushed . | . . . . . . Highest Temperature 271 | . . 271 12 24 . Average Temperature 64 | . . 91 6 17 . Received Heat Transfer 342 | . . 99 195 48 . Siege Activations . | . . . . . . Robots Corrupted . | . . . . . . Combat Hostiles . | . . . . . . Parts Fried 1 | . . . . 1 . Impact Corruptions . | . . . . . . Robots Melted . | . . . . . . Combat Hostiles . | . . . . . . Parts Melted . | . . . . . . Heat Transferred 582 | . 25 150 407 . . Parts Sabotaged . | . . . . . . Parts Stolen . | . . . . . . Parts Stripped . | . . . . . . Power Chain Reactions . | . . . . . . Missiles Intercepted . | . . . . . . Alert | -11 -10 -10 -9 -9 -9 ------- Run | Scr Mat Min Mat Min Exi Peak Influence 315 | . 28 102 315 55 . Initial 7 | . . 7 . 4 . Average 43 | . 23 41 126 16 . Maximum Alert Level 1 | . . . 1 . . Low Security (%) 95 | 100 100 100 74 100 . Level 1 4 | . . . 25 . . Level 2 . | . . . . . . Level 3 . | . . . . . . Level 4 . | . . . . . . Level 5 . | . . . . . . High Security . | . . . . . . Max Security . | . . . . . . Squads Dispatched 1 | . . . 1 . . Investigation 1 | . . . 1 . . Extermination . | . . . . . . Reinforcement . | . . . . . . Assault . | . . . . . . Garrison . | . . . . . . Intercept . | . . . . . . Construction Impeded . | . . . . . . Haulers Reinforced . | . . . . . . Stealth | -11 -10 -10 -9 -9 -9 --------- Run | Scr Mat Min Mat Min Exi Distress Signals . | . . . . . . Communications Jammed . | . . . . . . Distress Signals . | . . . . . . Times Spotted 21 | . 1 4 12 4 . Peak Tracking Total 3 | . 1 2 3 2 . Tactical Retreats . | . . . . . . Traps | -11 -10 -10 -9 -9 -9 ------- Run | Scr Mat Min Mat Min Exi Traps Triggered 2 | . . . 2 . . Indirectly . | . . . . . . Trap Hack Attempts . | . . . . . . Triggered . | . . . . . . Disarmed . | . . . . . . Reprogrammed . | . . . . . . Reused . | . . . . . . Traps Extracted . | . . . . . . Installed . | . . . . . . Triggered . | . . . . . . Machines | -11 -10 -10 -9 -9 -9 ---------- Run | Scr Mat Min Mat Min Exi Machines Disabled . | . . . . . . Max in Single Turn . | . . . . . . Machines Sabotaged . | . . . . . . Garrisons Compromised . | . . . . . . Overloaded Fab Kills . | . . . . . . Fab Network Shutdowns . | . . . . . . Hacking | -11 -10 -10 -9 -9 -9 --------- Run | Scr Mat Min Mat Min Exi Machines Accessed 2 | . 1 . 1 . . Terminals 1 | . 1 . . . . Fabricators . | . . . . . . Repair Stations 1 | . . . 1 . . Recycling Units . | . . . . . . Scanalyzers . | . . . . . . Garrison Access . | . . . . . . Total Hacks 5 | . 1 . 4 . . Successful 4 | . 1 . 3 . . Failed 1 | . . . 1 . . Catastrophic . | . . . . . . Database Lockouts . | . . . . . . Manual 2 | . 1 . . . 1 Terminals 1 | . 1 . . . . Fabricators . | . . . . . . Repair Stations 4 | . . . 4 . . Recycling Units . | . . . . . . Scanalyzers . | . . . . . . Garrison Access . | . . . . . . Terminal Hacks 1 | . 1 . . . . Branch Access Points 1 | . 1 . . . . Fabricator Hacks . | . . . . . . Repair Station Hacks 3 | . . . 3 . . Scan Component 2 | . . . 2 . . Refit 1 | . . . 1 . . Recycling Unit Hacks . | . . . . . . Scanalyzer . | . . . . . . Garrison Access Hacks . | . . . . . . Unauthorized Hacks . | . . . . . . Terminals . | . . . . . . Fabricators . | . . . . . . Repair Stations . | . . . . . . Recycling Units . | . . . . . . Scanalyzers . | . . . . . . Garrison Access . | . . . . . . Data Cores Recovered . | . . . . . . Used . | . . . . . . Hacking Detections 1 | . . . 1 . . Full Trace Events 1 | . . . 1 . . Feedback Events . | . . . . . . Feedback Blocked . | . . . . . . Robot Schematics Acquired . | . . . . . . Robots Built . | . . . . . . Matter . | . . . . . . Time . | . . . . . . Total Robot Build Rating . | . . . . . . Part Schematics Acquired . | . . . . . . Parts Built . | . . . . . . Matter . | . . . . . . Time . | . . . . . . Total Part Build Rating . | . . . . . . Parts Repaired . | . . . . . . Time . | . . . . . . Parts Recycled . | . . . . . . Recycled Matter . | . . . . . . Retrieved Matter . | . . . . . . Retrieved Components . | . . . . . . Parts Scanalyzed . | . . . . . . Part Schematics Acquired . | . . . . . . Parts Damaged . | . . . . . . Bothacking | -11 -10 -10 -9 -9 -9 ------------ Run | Scr Mat Min Mat Min Exi Used RIF Installer . | . . . . . . Robots Hacked . | . . . . . . Non-combat . | . . . . . . Combat . | . . . . . . Robot Hacks Applied . | . . . . . . Relay Couplers Released . | . . . . . . Robots Rewired . | . . . . . . Allies Hacked . | . . . . . . Hacks Repelled . | . . . . . . Allies | -11 -10 -10 -9 -9 -9 -------- Run | Scr Mat Min Mat Min Exi Total Allies . | . . . . . . Largest Group . | . . . . . . Highest-Rated Group . | . . . . . . Highest-Rated Ally . | . . . . . . Total Orders . | . . . . . . Ally Attacks . | . . . . . . Total Damage . | . . . . . . Kills . | . . . . . . Allies Corrupted . | . . . . . . Allies Melted . | . . . . . . Intel | -11 -10 -10 -9 -9 -9 ------- Run | Scr Mat Min Mat Min Exi Robot Analysis Total . | . . . . . . Derelict Logs Recovered 1 | . . 1 . . . Drone Launches . | . . . . . . Drone Recoveries . | . . . . . . Exploration | -11 -10 -10 -9 -9 -9 ------------- Run | Scr Mat Min Mat Min Exi Turns Passed 2486 | 123 119 640 405 932 267 Spaces Moved 1713 | 89 93 495 192 683 161 Core 17 | 17 . . . . . Treads . | . . . . . . Legs 1696 | 72 93 495 192 683 161 Wheels . | . . . . . . Hover . | . . . . . . Flight . | . . . . . . Fastest Speed 50 | 50 120 120 120 120 120 Average Speed 120 | 121 120 120 120 120 120 Slowest Speed 200 | 200 120 120 120 120 120 Overloaded Moves . | . . . . . . Propulsion Burnouts . | . . . . . . Robots Hopped . | . . . . . . Cave-ins Triggered . | . . . . . . Exploration Rate (%) 42 | 5 18 80 16 94 40 Regions Visited 5 Branch Regions 3 Pre-discovered Areas 1 | . . . . 1 . Known Exits Taken 5 | 1 1 1 1 1 . Unknown Exits Taken . | . . . . . . Scrap Searched . | . . . . . . Spaces Dug . | . . . . . . Terrain Destroyed . | . . . . . . Melee . | . . . . . . Projectile . | . . . . . . AOE . | . . . . . . Terrain Rammed . | . . . . . . Walls Destroyed . | . . . . . . Machines Disabled . | . . . . . . Actions | -11 -10 -10 -9 -9 -9 --------- Run | Scr Mat Min Mat Min Exi Total 2004 | 101 97 521 271 782 232 Wait 145 | . . 3 10 75 57 Move 1708 | 88 92 494 191 682 161 Hop . | . . . . . . Pick Up 16 | 6 1 3 . 6 . Fast Attach 17 | 6 . 1 5 . 5 Attach 4 | 1 1 2 . . . Detach 2 | . . 2 . . . Swap 4 | . 1 . 2 1 . Drop 15 | . . 1 2 6 6 Fire 83 | . 1 13 61 8 . Melee 3 | . . . . . 3 Ram . | . . . . . . Kick 7 | . 1 2 . 4 . Crush . | . . . . . . Escape Stasis . | . . . . . . Rewire . | . . . . . . Trap . | . . . . . . Miscellaneous . | . . . . . . Route ------- -11/Scrapyard -10/Materials -10/Mines (discovered 2 exits: *Mat x2) -9/Materials -9/Mines (discovered 3 exits: *Mat x2 / *Exi) -9/Exiles History --------- Turn | Location | Event 18 | -11/Scrapyard | Identified exit to Materials 18 | -11/Scrapyard | Discovered exit to Materials (range 16) 124 | -11/Scrapyard | Entered Materials 124 | -10/Materials | Evolved 1 slot: Utility x1 167 | -10/Materials | Identified exit to Mines 243 | -10/Materials | Entered Mines 308 | -10/Mines | Build established: Hacker-Mutant 342 | -10/Mines | Learned Materials interactive machine intel 353 | -10/Mines | Found a damaged Exp. Sensor Array with a note attached 356 | -10/Mines | Found Prototype Device 357 | -10/Mines | Identified Exp. Sensor Array 396 | -10/Mines | Identified exit to Materials 396 | -10/Mines | Discovered exit to Materials (range 9) 742 | -10/Mines | Discovered exit to Materials (range 5) 883 | -10/Mines | Entered Materials 883 | -9/Materials | Evolved 2 slots: Propulsion x2 884 | -9/Materials | Loaded intel: 18 interactive machine locations 1221 | -9/Materials | Identified exit to Mines 1221 | -9/Materials | Discovered exit to Mines (range 14) 1288 | -9/Materials | Entered Mines 1294 | -9/Mines | Met a Derelict bent on vengeance 1535 | -9/Mines | Learned location of Storage (-9) 1870 | -9/Mines | Identified exit to Materials 1870 | -9/Mines | Discovered exit to Materials (range 13) 1984 | -9/Mines | A weapon hastily lodged in a ceiling crevice suddenly fell to the ground 2098 | -9/Mines | Discovered exit to Materials (range 8) 2214 | -9/Mines | Deemed a non-threat by the Exiles lab entrance 2215 | -9/Mines | Identified exit to Exiles 2215 | -9/Mines | Discovered exit to Exiles (range 5) 2220 | -9/Mines | Entered Exiles 2252 | -9/Exiles | Met 8R-AWN 2272 | -9/Exiles | Met EX-HEX 2312 | -9/Exiles | Met EX-BIN 2337 | -9/Exiles | Aligned with FarCom system 2338 | -9/Exiles | Given EX-Vault access code 2376 | -9/Exiles | Opened EX-Vault 2385 | -9/Exiles | Found Prototype Slashing Weapon 2385 | -9/Exiles | Identified Longsword +1 2477 | -9/Exiles | Found Prototype Device 2477 | -9/Exiles | Identified PSU Rigger 2486 | -9/Exiles | Found Prototype Special Weapon 2486 | -9/Exiles | Identified Field Lobotomy Kit 2487 | -9/Exiles | Self-destructed Last Messages --------------- bunch of our other prototypes were already given to Derelicts out handling other tasks for us. I haven't taken inventory for a while and I'm not sure what's in there now, but if there are more than one of the same prototype you can choose to take all of those and it just counts as your one! 02376_ Connecting with EX-Vault Access... 02384_ Dropped Hvy. Assault Rifle. 02384_ Dropped Imp. EM Shotgun. 02385_ Acquired Prototype Slashing Weapon. 02385_ Identified Longsword +1. 02390_ Dropped Longsword +1. 02393_ Acquired Longsword +1. 02473_ Dropped Longsword +1. 02477_ Dropped ECM Suite. 02477_ Acquired Prototype Device. 02477_ Identified PSU Rigger. 02479_ Dropped PSU Rigger. 02481_ Acquired ECM Suite. 02486_ Acquired Prototype Special Weapon. 02486_ Identified Field Lobotomy Kit. Map ----- +----------------------------------------------------+ | | | | | | | | | | | | | | | | | | | | | | | | | | | | | | | | | | | | | | | | | | | | | ???????????????????#########?????????????????????? | | ???????????????????#/[ #?????????????????????? | | ???????????????????#[ ! #?????????????????????? | | ???????????????????# @ #?????????????????????? | | ???????????????????# X#?????????????????????? | | ???????????????????## ##?????????????????????? | | ???????????????????#X #??????????????????????? | | ???????????????????## #??????????????????????? | | ????????????????????# #??????????????????????? | | ????????????????????# #???#?##???????????????? | | ????????????????????# #??"""""???????????????? | | ????????????????????# ## """#??????????????? | | ????????????????????# X""#??????????????? | | ????????????????????# ## """#??????????????? | | ??????????????####??# #??"""""???????????????? | | ??????????????"""""?# #???#?##???????????????? | | ??????????????""" ## #??????????????????????? | | ????????????#""X" #??????????????????????? | | ????????????#" #??????????????????????? | | ????????????#" ## #??????????????????????? | | ????????????#""""""?# #?#########????????????? | | ??????????????"###??# #?#"""""""#????????????? | | ????????????????????# #?#"""""""#????????????? | | ????????????????????# #?#"""""""#????????????? | | ???????????????????## ###"" """"#????????????? | | ???????????????????#" """"#????????????? | | ???????????????????#" """#????????????? | | ???????????????????#" """#????????????? | +----------------------------------------------------+ Best States ------------- Heat Dissipation 28 Energy Generation 14 Energy Capacity 280 Matter Stores 300 Matter Capacity 300 Sight Range 16 Terrain Scan Density 10 ECM Strength 1 Resistance: KI 35 Resistance: TH 35 Resistance: EX 35 Resistance: EM 35 Resistance: I 35 Resistance: S 35 Resistance: P 35 Core Shielding 20 Evasion (%) 55 Offensive Hacking 20 Item Schematics ----------------- None Robot Schematics ------------------ None Fabricated ------------ Nothing Alien Tech Used ----------------- None Achievements -------------- None Challenges ------------ None Game ------ Seed UltimateAccelerationPurifier Manual? 0 Play Time 00:16:22 Cumulative 108.3 hours Start 2021.02.16 @ 16:45:14 End 2021.02.16 @ 17:02:18 Sessions 1 Manual Loads 0 Difficulty Explorer Special Mode None Game No. 31 Rogue 0 Adventurer 0 Explorer 31 Win Type - Total 8 Types 7/0/1/0/0/0/0/0/0 Lore% 47 Gallery% 68 Achievement% 58 Wizard Run 0 Options --------- ASCII 0 Keyboard 0 Movement Arrows Keybinds 0 Fullscreen 1 Font 18/Smallcaps Map View 76x50 Tactical HUD 1 Map Filters NONE Filters NONE Steam 1 RUN: 956e3c80-262e-472e-a360-8f5582e67834